bitfinex-derivatives/quotes_ETHF0:USTF0_20250501
["timestamp","ask_amount","ask_price","bid_price","bid_amount"]
[1746095646566,14.48344814,1842.4,1842.3,0.63747]
[1746095647258,1.08572,1842.0,1841.9,1.08577]
[1746095647459,1.0857,1842.1,1842.0,1.08571]
[1746095647662,1.08573,1842.0,1841.9,1.08574]
[1746095648165,1.08567,1842.1,1842.0,1.0857]
[1746095648359,2.71399,1842.3,1841.9,1.08573]
[1746095648663,1.08578,1841.9,1841.8,40.8]
[1746095648861,2.71469,1841.8,1841.4,4.29386]
[1746095649059,2.0331,1841.8,1841.4,3.2078]
[1746095649260,2.0331,1841.8,1841.6,1.08593]
[1746095649461,1.08592,1841.7,1841.5,41.88598]
[1746095649662,2.0331,1841.8,1841.6,1.08595]
[1746095649855,3.11893,1841.8,1841.7,1.8654]
[1746095650163,1.08601,1841.5,1841.4,3.2078]
[1746095650360,1.08607,1841.4,1841.3,3.78]
[1746095650753,1.08607,1841.4,1841.3,44.58]
[1746095651158,1.08607,1841.4,1841.3,44.588]
[1746095651364,4.29387,1841.4,1841.3,44.588]
[1746095651564,1.08607,1841.4,1841.3,44.588]
[1746095652163,1.08607,1841.4,1841.3,40.8]
[1746095652368,1.08637,1840.9,1840.8,3.2078]
[1746095652565,1.08637,1840.9,1840.8,1.9471]
[1746095652773,1.08637,1840.9,1840.8,42.7471]
[1746095652962,1.08637,1840.9,1840.4,19.26837495]
[1746095652963,2.71577,1841.0,1840.3,3.788]
[1746095653164,2.0103,1840.8,1840.2,8.1008]
[1746095653359,1.08657,1840.6,1840.4,1.08662]
[1746095653565,1.08657,1840.6,1840.5,1.0866]
[1746095653766,4.72644,1840.8,1840.3,41.88669]
[1746095653967,1.08664,1840.5,1840.3,41.88669]
[1746095654167,1.08664,1840.5,1840.4,1.9471]
[1746095654569,1.08666,1840.4,1840.3,3.788]
[1746095654873,1.08666,1840.4,1840.3,5.7351]
[1746095655263,3.2078,1840.5,1840.3,1.9471]
[1746095655466,1.08638,1840.9,1840.4,4.64331]
[1746095655662,4.894,1841.1,1840.4,4.64331]
[1746095655663,2.71549,1841.2,1840.5,5.92431]
[1746095655961,2.71549,1841.2,1840.6,1.9267]
[1746095656167,1.08648,1840.7,1840.6,1.9267]
[1746095657168,3.2078,1840.8,1840.7,1.08648]
[1746095657370,3.2078,1841.1,1840.7,1.08648]
[1746095657565,1.08642,1840.8,1840.7,3.01318]
[1746095658173,1.08642,1840.8,1840.7,6.80118]
[1746095658361,1.08642,1840.8,1840.7,5.7147]
[1746095658566,7.89813,1841.1,1840.7,6.80118]
[1746095658765,1.08642,1840.8,1840.7,5.7147]
[1746095659468,1.0864,1840.9,1840.7,6.80118]
[1746095659768,1.08642,1840.8,1840.7,6.80118]
[1746095659970,1.08639,1840.9,1840.8,1.08642]
[1746095660171,5.1825,1841.1,1840.8,1.08642]
[1746095660172,1.08633,1841.0,1840.8,1.08642]
[1746095660470,1.08633,1841.0,1840.9,1.8886]
[1746095660667,1.08633,1841.0,1840.9,2.97497]
[1746095660967,4.2941,1841.1,1841.0,1.08631]
[1746095661172,4.29405,1841.1,1841.0,1.8886]
[1746095661575,1.08625,1841.1,1841.0,1.8886]
[1746095662081,1.08625,1841.1,1841.0,2.97491]
[1746095662270,1.08616,1841.3,1841.0,5.6766]
[1746095662469,5.876,1842.8,1841.0,5.6766]
[1746095662470,3.2078,1841.7,1841.2,2.71548]
[1746095662766,5.0927,1841.9,1841.4,2.71505]
[1746095663072,1.08585,1841.8,1841.6,1.08592]
[1746095663265,1.08585,1841.8,1841.7,1.9833]
[1746095664477,1.08595,1841.6,1841.5,41.88598]
[1746095664679,1.08594,1841.7,1841.6,1.08595]
[1746095664879,1.08594,1841.7,1841.6,1.9524]
[1746095665271,1.08594,1841.7,1841.6,3.03835]
[1746095666675,1.8849,1841.9,1841.8,1.08583]
[1746095666972,1.08564,1842.2,1842.1,1.08566]
[1746095667179,1.08563,1842.2,1841.9,4.66684]
[1746095667372,1.08563,1842.2,1842.1,1.08563]
[1746095668080,4.76635,1842.3,1841.9,3.03815]
[1746095668269,2.71428,1842.1,1841.7,5.1069]
[1746095668468,1.08569,1842.1,1841.7,7.82164]
[1746095668671,3.00119,1842.1,1842.0,1.08571]
[1746095668879,1.08573,1842.0,1841.9,1.08572]
[1746095669278,3.00119,1842.1,1842.0,1.08572]
[1746095669581,1.08572,1842.0,1841.9,1.08573]
[1746095669877,1.08572,1842.0,1841.7,7.82164]
[1746095669878,1.0858,1841.9,1841.8,1.08579]
[1746095670276,1.08578,1841.9,1841.8,4.87379]
[1746095670475,1.08577,1842.0,1841.9,1.08577]
[1746095670671,1.0857,1842.1,1842.0,1.08572]
[1746095671370,1.0857,1842.1,1841.7,7.82163]
[1746095671583,1.08577,1842.0,1841.9,1.08576]
[1746095671780,1.08583,1841.8,1841.7,3.2078]
[1746095672479,1.08595,1841.6,1841.5,41.88599]
[1746095672687,1.08595,1841.6,1841.5,40.8]
[1746095672985,1.08595,1841.6,1841.5,41.88601]
[1746095673185,1.08595,1841.6,1841.5,40.8]
[1746095673380,1.08595,1841.6,1841.5,41.88601]
[1746095673587,1.08595,1841.6,1841.5,40.8]
[1746095674081,1.08595,1841.6,1841.5,45.67401]
[1746095674880,1.08595,1841.6,1841.5,44.588]
[1746095675082,1.08595,1841.6,1841.5,45.67401]
[1746095675283,1.08595,1841.6,1841.5,44.588]
[1746095675585,1.08595,1841.6,1841.5,3.788]
[1746095675788,1.08595,1841.6,1841.5,4.87401]
[1746095676178,1.08602,1841.5,1841.4,1.08602]
[1746095676585,4.69035,1841.7,1841.3,46.0598]
[1746095676784,1.08607,1841.4,1841.3,46.0598]
[1746095676981,1.08637,1840.9,1840.8,3.2078]
[1746095677178,3.2078,1841.4,1840.5,2.71648]
[1746095677179,1.08642,1840.8,1840.7,5.98043]
[1746095677382,1.08642,1840.8,1840.7,45.694]
[1746095677783,1.08639,1840.9,1840.7,45.694]
[1746095678091,1.08634,1841.0,1840.9,1.08637]
[1746095678390,2.7155,1841.2,1840.7,49.482]
[1746095678594,1.08642,1840.8,1840.7,3.788]
[1746095678984,3.09628224,1840.8,1840.7,3.788]
[1746095679285,1.9156,1840.8,1840.3,40.8]
[1746095679484,4.29417,1840.9,1840.4,5.9244]
[1746095679689,4.29417,1840.9,1840.5,2.7165]
[1746095679884,4.29417,1840.9,1840.7,1.08644]
[1746095680081,4.29417,1840.9,1840.8,3.05072]
[1746095680285,1.08635,1841.0,1840.8,3.05072]
[1746095680484,1.08635,1841.0,1840.9,1.9643]
[1746095681193,1.08635,1841.0,1840.9,5.7523]
[1746095682594,1.08635,1841.0,1840.9,3.788]
[1746095683088,1.08648,1840.7,1840.6,3.2078]
[1746095683694,3.2078,1841.1,1840.6,5.92415]
[1746095683888,5.92343,1841.1,1840.7,2.0012]
[1746095684088,1.08642,1840.8,1840.7,2.0012]
[1746095684985,2.71592,1840.9,1840.3,44.0078]
[1746095685288,2.71592,1840.9,1840.5,1.08658]
[1746095685482,1.08654,1840.7,1840.6,2.0012]
[1746095685791,2.97127,1840.8,1840.6,3.08774]
[1746095685997,1.08639,1840.9,1840.8,1.0864]
[1746095686293,2.71597,1840.9,1840.5,3.788]
[1746095686488,1.08654,1840.6,1840.5,4.87457]
[1746095686688,1.08652,1840.7,1840.6,1.08651]
[1746095686883,1.08654,1840.6,1840.5,4.87455]
[1746095687084,1.08654,1840.6,1840.5,3.788]
[1746095687485,4.29434,1840.6,1840.5,3.788]
[1746095688294,1.0866,1840.5,1840.4,3.788]
[1746095688496,2.9972,1840.5,1840.4,3.788]
[1746095688996,8.09147887,1840.5,1840.4,2.62022]
[1746095689195,1.08684,1840.1,1840.0,1.9171]
[1746095689396,1.08684,1840.1,1840.0,42.7171]
[1746095690095,4.29464,1840.1,1840.0,40.8]
[1746095691096,1.08684,1840.1,1840.0,40.8]
[1746095692299,1.08684,1840.1,1840.0,44.588]
[1746095693508,1.08684,1840.1,1840.0,3.788]
[1746095694201,7.52974,1840.2,1839.7,3.2078]
[1746095694402,1.08702,1839.8,1839.7,3.2078]
[1746095694798,1.08702,1839.8,1839.7,44.0078]
[1746095695202,1.08702,1839.8,1839.7,47.7958]
[1746095695796,5.92516,1840.0,1839.7,47.7958]
[1746095696001,1.08702,1839.8,1839.7,47.7958]
[1746095697402,1.08702,1839.8,1839.7,44.588]
[1746095700407,1.08702,1839.8,1839.7,3.788]
[1746095700613,9.29482,1839.8,1839.7,2.44927]
[1746095700808,16.1995444,1839.8,1839.7,1e-05]
[1746095701009,18.1400444,1839.8,1839.7,1e-05]
[1746095701207,1.08725,1839.4,1839.3,2.0026]
[1746095701913,1.08731,1839.3,1839.2,1.68354]
[1746095702106,4.29511,1839.3,1839.2,1.68354]
[1746095702706,9.29511,1839.3,1839.2,1.68354]
[1746095703015,4.29511,1839.3,1839.2,1.68354]
[1746095703510,3.2078,1839.3,1839.2,2.77091]
[1746095703708,1.08725,1839.5,1839.3,1.08728]
[1746095703913,1.08719,1839.5,1839.4,2.0891]
[1746095704411,2.0353,1839.7,1839.4,2.0891]
[1746095704717,3.2078,1839.9,1839.5,2.71799]
[1746095705025,3.2078,1839.9,1839.6,3.1762]
[1746095705204,4.2948,1839.9,1839.7,3.17617]
[1746095705611,3.2078,1839.9,1839.7,3.17617]
[1746095705913,3.2078,1839.9,1839.8,1.08702]
[1746095706115,1.08686,1840.1,1840.0,1.0869]
[1746095706315,5.9246,1840.4,1840.0,1.0869]
[1746095706512,1.08678,1840.2,1840.1,2.0891]
[1746095706713,1.08677,1840.3,1840.1,3.17594]
[1746095706906,1.0867,1840.4,1840.2,1.9712]
[1746095707109,1.08667,1840.4,1840.3,1.0867]
[1746095707614,1.0866,1840.6,1840.2,5.92476]
[1746095707915,1.08651,1840.7,1840.2,10.81476]
[1746095708214,1.08657,1840.6,1840.5,1.08658]
[1746095708603,1.08653,1840.7,1840.5,1.08658]
[1746095708903,2.71592,1841.0,1840.5,1.08658]
[1746095708904,3.00505,1841.0,1840.8,1.08638]
[1746095709111,4.29408,1841.1,1840.9,1.08637]
[1746095709309,4.29408,1841.1,1840.8,3.788]
[1746095709508,1.9187,1841.2,1840.8,3.788]
[1746095709716,1.08617,1841.3,1841.2,1.08619]
[1746095710217,1.08617,1841.3,1841.2,4.87419]
[1746095710410,5.1863,1841.5,1841.2,3.788]
[1746095710715,1.9785,1841.5,1841.4,1.08607]
[1746095710914,1.9785,1841.5,1841.3,2.98289]
[1746095710915,1.08607,1841.4,1841.3,2.98289]
[1746095711618,3.06456,1841.5,1841.3,2.98289]
[1746095711809,3.06456,1841.5,1841.4,1.8968]
[1746095712009,1.08607,1841.4,1841.3,1.08612]
[1746095712210,1.08607,1841.4,1841.3,4.87412]
[1746095712412,1.08607,1841.4,1841.3,3.788]
[1746095712906,3.06457,1841.4,1841.3,3.788]
[1746095713106,1.08613,1841.3,1841.2,1.08619]
[1746095713315,3.10583,1841.3,1841.2,1.08619]
[1746095713512,2.0197,1841.3,1841.1,1.8968]
[1746095713814,5.2275,1841.3,1841.1,1.8968]
[1746095714008,3.2078,1841.7,1841.5,1.086]
[1746095714212,2.0197,1841.6,1841.5,1.08601]
[1746095715016,1.08598,1841.6,1841.5,1.08601]
[1746095715517,4.29372,1841.7,1841.6,1.08595]
[1746095715718,1.08595,1841.6,1841.5,1.08596]
[1746095716017,3.10555,1841.8,1841.7,1.08589]
[1746095716217,5.2275,1841.8,1841.5,3.788]
[1746095716417,1.08595,1841.6,1841.5,5.8194]
[1746095716718,4.29375,1841.6,1841.5,3.788]
[1746095717120,1.08594,1841.7,1841.5,1.08601]
[1746095717309,3.01525,1841.6,1841.5,1.08601]
[1746095717514,3.01525,1841.6,1841.4,1.08603]
[1746095717714,3.01525,1841.6,1841.5,1.08601]
[1746095717916,1.9293,1841.6,1841.5,1.08601]
[1746095718412,1.08608,1841.4,1841.2,3.2078]
[1746095718618,1.9293,1841.3,1841.2,4.29399]
[1746095718816,1.9293,1841.3,1841.2,6.32539]
[1746095719020,1.08603,1841.5,1841.3,1.08609]
[1746095719212,1.08607,1841.4,1841.3,1.08609]
[1746095719616,3.11716,1841.5,1841.2,9.0272]
[1746095719917,1.08607,1841.4,1841.3,1.08613]
[1746095720118,2.0311,1841.4,1841.3,1.08613]
[1746095720918,1.08598,1841.6,1841.5,1.08601]
[1746095721126,3.11708,1841.6,1841.5,1.08601]
[1746095721321,2.0311,1841.6,1841.5,1.08601]
[1746095721516,2.0311,1841.6,1841.4,2.0828]
[1746095721824,1.08601,1841.5,1841.4,3.16884]
[1746095722116,3.11707,1841.6,1841.5,1.08601]
[1746095722322,3.11707,1841.6,1841.5,3.03931]
[1746095722521,3.2078,1841.8,1841.7,1.08589]
[1746095722716,2.0275,1841.8,1841.7,1.08589]
[1746095722918,4.29355,1842.0,1841.8,1.0858]
[1746095723121,1.08578,1841.9,1841.8,4.8738]
[1746095723322,3.11328,1841.9,1841.8,3.788]
[1746095723623,3.11328,1841.9,1841.8,44.588]
[1746095724020,3.11328,1841.9,1841.8,3.788]
[1746095724218,1.0859,1841.7,1841.6,1.0859]
[1746095724418,4.29367,1841.8,1841.7,1.08589]
[1746095724618,3.11332,1841.9,1841.8,1.08583]
[1746095724819,3.11328,1841.9,1841.8,1.08583]
[1746095725014,3.11328,1841.9,1841.7,3.03914]
[1746095725318,3.11328,1841.9,1841.8,4.87383]
[1746095725518,3.11328,1841.9,1841.8,3.788]
[1746095725919,3.11328,1841.9,1841.8,4.87383]
[1746095726128,3.11328,1841.9,1841.8,1.08583]
[1746095726323,2.0275,1841.9,1841.8,1.08583]
[1746095726626,1.08586,1841.8,1841.6,40.8]
[1746095726818,1.9766,1841.7,1841.6,41.88595]
[1746095728430,3.06249,1841.7,1841.6,40.8]
[1746095729627,1.08601,1841.5,1841.3,1.9454]
[1746095729829,1.08613,1841.3,1841.2,6.25616]
[1746095730130,1.08613,1841.3,1841.2,52.78956]
[1746095730628,1.08613,1841.3,1841.2,51.7034]
[1746095731030,4.29393,1841.3,1841.2,3.788]
[1746095731231,1.08631,1841.0,1840.9,1.9454]
[1746095731431,1.08631,1841.0,1840.9,42.7454]
[1746095732329,1.08631,1841.0,1840.9,1.08637]
[1746095732529,3.03054,1841.2,1840.7,7.863]
[1746095732825,1.08613,1841.3,1841.2,1.08619]
[1746095733828,1.08613,1841.3,1841.2,1.08615]
[1746095734026,1.9443,1841.4,1841.0,4.65477]
[1746095734027,1.9443,1841.4,1841.3,1.08613]
[1746095734229,1.08601,1841.5,1841.4,1.08607]
[1746095734430,4.29379,1841.6,1841.5,1.08601]
[1746095734734,1.08604,1841.5,1841.4,1.08605]
[1746095734924,1.08604,1841.5,1841.3,1.9411]
[1746095734925,1.08607,1841.4,1841.3,3.02719]
[1746095735832,1.08613,1841.3,1841.2,2.0061]
[1746095736030,3.07773,1841.3,1841.2,2.0061]
[1746095736426,3.07773,1841.3,1841.2,3.09229]
[1746095736828,3.07773,1841.3,1841.2,3.9472]
[1746095737534,3.07773,1841.3,1841.2,5.03339]
[1746095737935,3.07773,1841.3,1841.2,3.9472]
[1746095738233,1.08631,1841.0,1840.9,4.29415]
[1746095738436,1.08631,1841.0,1840.9,5.2136]
[1746095738828,1.08631,1841.0,1840.5,11.10066382]
[1746095738829,5.9236,1841.0,1840.5,3.2078]
[1746095739023,1.08654,1840.6,1840.5,3.09238]
[1746095739227,4.87454,1840.6,1840.5,3.09238]
[1746095739522,4.87454,1840.6,1840.5,43.89238]
[1746095741432,4.87454,1840.6,1840.5,42.8058]
[1746095741631,4.87454,1840.6,1840.5,43.8924]
[1746095742333,4.87454,1840.6,1840.5,42.8058]
[1746095742523,4.87454,1840.6,1840.5,43.8924]
[1746095743732,3.788,1840.6,1840.5,43.8924]
[1746095744227,3.788,1840.6,1840.5,47.1002]
[1746095745222,4.87454,1840.6,1840.5,47.1002]
[1746095746033,3.788,1840.6,1840.1,3.2078]
[1746095746233,2.71712,1840.1,1839.7,2.0784]
[1746095746429,1.08702,1839.8,1839.7,2.0784]
[1746095746825,1.08702,1839.8,1839.7,4.0556]
[1746095747031,1.9372,1840.0,1839.6,40.8]
[1746095747231,1.9372,1840.0,1839.7,1.08707]
[1746095747232,3.788,1839.8,1839.7,1.08707]
[1746095747432,3.788,1839.8,1839.7,3.06427]
[1746095748135,3.788,1839.8,1839.7,8.06427]
[1746095748834,15.38432,1840.5,1839.9,2.71731]
[1746095748835,5.1546,1840.5,1839.9,2.71731]
[1746095749135,1.0868,1840.2,1840.1,1.08684]
[1746095749730,4.65386,1840.4,1840.0,3.9848]
[1746095749731,1.08684,1840.1,1840.0,3.9848]
[1746095749930,1.08681,1840.2,1840.1,1.08681]
[1746095750133,6.90078,1840.2,1840.1,1.08681]
[1746095750337,3.788,1840.2,1840.1,1.08681]
[1746095750639,4.87478,1840.2,1840.1,1.08681]
[1746095750937,3.788,1840.2,1840.1,1.08681]
[1746095751135,4.87478,1840.2,1840.1,1.08681]
[1746095751731,1.08695,1840.0,1839.9,1.08695]
[1746095752034,1.08697,1839.9,1839.8,1.08697]
[1746095752235,1.08702,1839.8,1839.7,6.25843]
[1746095752437,1.08731,1839.3,1838.9,10.58456859]
[1746095752631,4.29511,1839.3,1838.9,10.58456859]
[1746095752842,4.38944893,1839.3,1838.9,11.67210859]
[1746095753034,6.43374893,1839.3,1838.9,51.38456859]
[1746095753339,10.12741,1839.3,1839.0,8.14381906]
[1746095753541,10.12741,1839.3,1839.1,3.14123]
[1746095753737,10.12741,1839.3,1839.1,2.0538]
[1746095754143,10.12741,1839.3,1839.1,3.14123]
[1746095754436,9.0401,1839.3,1839.1,2.0538]
[1746095754632,9.0401,1839.3,1839.2,4.82471]
[1746095754841,6.9958,1839.3,1839.2,4.82471]
[1746095755227,3.788,1839.3,1839.2,4.82471]
[1746095755733,3.788,1839.3,1839.2,9.82471]
[1746095756039,3.788,1839.3,1839.2,4.82471]
[1746095756638,4.87531,1839.3,1839.2,3.73734]
[1746095756839,4.87531,1839.3,1839.2,44.53734]
[1746095757038,3.788,1839.3,1839.2,44.53734]
[1746095757345,4.87531,1839.3,1839.2,42.48354]
[1746095757529,4.87534,1839.3,1838.9,2.0016]
[1746095757837,6.83944,1839.3,1839.1,3.089]
[1746095758028,6.83944,1839.3,1839.2,43.88897]
[1746095758029,3.788,1839.3,1839.2,43.88897]
[1746095759137,3.788,1839.3,1839.2,48.88897]
[1746095759330,3.788,1839.3,1839.2,43.88897]
[1746095759734,4.87531,1839.3,1839.2,43.88897]
[1746095759933,6.89221,1839.3,1839.2,42.8016]
[1746095760535,6.89221,1839.3,1839.2,43.88897]
[1746095760536,5.8049,1839.3,1839.2,43.88897]
[1746095761333,3.788,1839.3,1839.2,43.88897]
[1746095762443,10.0318,1840.1,1839.4,2.71814]
[1746095762635,2.0428,1839.9,1839.8,1.08702]
[1746095762840,6.33758,1839.9,1839.8,1.08702]
[1746095763041,1.08702,1839.8,1839.7,1.08703]
[1746095763342,9.0386,1839.9,1839.5,4.0476]
[1746095763545,1.0871,1839.7,1839.6,1.08707]
[1746095763744,1.08713,1839.6,1839.5,5.13479]
[1746095764538,3.788,1839.7,1839.6,1.08713]
[1746095765446,3.788,1839.7,1839.6,6.08713]
[1746095765743,3.2078,1840.2,1840.1,1.08684]
[1746095766238,6.9958,1840.2,1840.1,1.08684]
[1746095766638,3.788,1840.2,1840.1,1.08684]
[1746095767042,4.87478,1840.2,1840.1,1.08684]
[1746095767247,1.08685,1840.1,1840.0,1.08685]
[1746095767548,1.97,1840.1,1840.0,3.02385]
[1746095767748,5.1778,1840.1,1840.0,3.02385]
[1746095767940,3.05684,1840.1,1840.0,3.02385]
[1746095768145,6.84484,1840.1,1840.0,3.02385]
[1746095768548,1.0869,1840.0,1839.9,1.08691]
[1746095768849,3.00486,1840.0,1839.9,1.08696]
[1746095769143,8.42319,1840.0,1839.5,4.0693]
[1746095769342,1.08707,1839.8,1839.7,2.0867]
[1746095769548,8.9137,1840.0,1839.7,1.08707]
[1746095769750,1.08702,1839.8,1839.7,1.08707]
[1746095770052,1.08699,1839.9,1839.8,1.08698]
[1746095770243,6.50563,1839.8,1839.1,2.71858]
[1746095770438,1.08717,1839.6,1839.3,2.0867]
[1746095770752,1.08717,1839.6,1839.5,1.08719]
[1746095771142,4.87517,1839.6,1839.5,1.08717]
[1746095771342,1.08725,1839.5,1839.4,1.08724]
[1746095771645,1.08731,1839.3,1839.2,40.8]
[1746095772154,3.788,1839.3,1839.2,41.88737]
[1746095772751,4.87531,1839.3,1839.2,40.8]
[1746095773347,3.788,1839.3,1839.2,41.88737]
[1746095773547,3.788,1839.3,1839.2,43.93357]
[1746095773945,3.788,1839.3,1838.9,3.2078]
[1746095774147,0.09434923,1839.2,1839.1,1.08743]
[1746095774348,6.9958,1839.3,1839.2,1.08737]
[1746095774556,3.788,1839.3,1839.2,1.08737]
[1746095775547,3.788,1839.3,1839.2,3.04137]
[1746095775745,3.788,1839.3,1839.2,10.06337]
[1746095775942,1.08705,1839.8,1839.2,10.06337]
[1746095775943,3.0,1839.9,1839.4,3.80528]
[1746095776247,1.08713,1839.6,1839.5,40.8]
[1746095776453,4.29493,1839.6,1839.5,40.8]
[1746095776752,1.08723,1839.5,1839.3,1.08727]
[1746095777154,1.08723,1839.5,1839.3,4.87527]
[1746095777646,1.08723,1839.5,1839.4,1.08725]
[1746095778053,1.08725,1839.4,1839.3,4.87528]
[1746095778251,1.08725,1839.4,1839.3,4.87531]
[1746095778450,3.2078,1839.6,1839.3,3.788]
[1746095778649,1.08723,1839.5,1839.3,3.788]
[1746095778849,1.08723,1839.5,1839.4,1.08725]
[1746095779057,1.08723,1839.5,1839.3,3.788]
[1746095779249,1.08723,1839.5,1839.4,1.08725]
[1746095779556,1.08725,1839.4,1839.3,4.87527]
[1746095779856,3.2078,1839.6,1839.5,1.08719]
[1746095780356,3.2078,1839.6,1839.5,4.87519]
[1746095781355,4.29493,1839.6,1839.5,4.87519]
[1746095781554,4.29493,1839.6,1839.5,3.788]
[1746095782053,4.38925636,1839.6,1839.5,3.788]
[1746095782354,4.29493,1839.6,1839.5,4.87519]
[1746095782657,3.2078,1839.6,1839.5,4.87519]
[1746095782859,3.2078,1839.6,1839.5,1.87519]
[1746095783058,4.29493,1839.6,1839.5,0.788]
[1746095786963,4.38925849,1839.6,1839.5,0.788]
[1746095787261,1.08731,1839.4,1839.3,1.0873]
[1746095787458,4.29511,1839.4,1839.3,1.0873]
[1746095788165,1.08733,1839.3,1839.2,1.08732]
[1746095788554,4.2951,1839.4,1839.3,1.08731]
[1746095788954,1.08731,1839.3,1839.2,3.19322]
[1746095789153,1.08731,1839.3,1839.2,6.98122]
[1746095789355,1.08731,1839.3,1839.2,4.87532]
[1746095789555,1.08731,1839.3,1839.2,3.788]
[1746095789857,1.08731,1839.3,1839.2,4.87537]
[1746095790057,3.14611,1839.3,1839.2,3.788]
[1746095790260,3.14611,1839.3,1839.2,4.87537]
[1746095790455,3.14611,1839.3,1839.2,3.788]
[1746095790663,1.08755,1838.9,1838.8,1.08756]
[1746095790960,1.08755,1838.9,1838.7,43.84512]
[1746095790961,1.08761,1838.8,1838.7,43.84512]
[1746095791161,2.0588,1838.8,1838.7,43.84512]
[1746095791659,3.2078,1838.9,1838.8,1.08761]
[1746095791859,4.72753713,1838.9,1838.8,3.00201]
[1746095792053,6.78633713,1838.9,1838.8,3.00201]
[1746095792251,5.69878713,1838.9,1838.8,6.79001]
[1746095792650,3.63998713,1838.9,1838.8,6.79001]
[1746095792850,3.63979499,1838.9,1838.8,6.79001]
[1746095794562,4.72723394,1838.9,1838.8,6.79001]
[1746095794966,4.72723394,1838.9,1838.8,4.87561]
[1746095795763,3.63968394,1838.9,1838.8,4.87561]
[1746095796066,3.63968394,1838.9,1838.8,6.92391]
[1746095796258,3.2078,1838.9,1838.8,6.92391]
[1746095796556,3.63974264,1838.9,1838.8,6.92391]
[1746095798162,3.64022951,1838.9,1838.8,6.92391]
[1746095799467,0.43242951,1838.9,1838.8,6.92391]
[1746095799971,3.19493,1839.1,1839.0,1.08749]
[1746095800170,3.6275246,1839.1,1839.0,4.87549]
[1746095800572,0.4325946,1839.1,1839.0,4.87549]
[1746095801365,0.4325946,1839.1,1839.0,6.84229]
[1746095801758,4.7278246,1839.1,1839.0,4.87549]
[1746095802678,4.7278246,1839.1,1839.0,3.788]
[1746095802979,4.82217648,1839.1,1839.0,3.788]
[1746095803176,9.7278246,1839.1,1839.0,3.788]
[1746095803477,13.88837884,1839.1,1839.0,3.788]
[1746095804073,8.7940246,1839.1,1839.0,3.788]
[1746095804277,6.7326246,1839.1,1839.0,3.788]
[1746095804578,11.7326246,1839.1,1839.0,2.0128]
[1746095804780,1.0878,1838.5,1838.4,1.08781]
[1746095805075,3.6403946,1838.5,1838.4,41.88781]
[1746095805275,0.4325946,1838.5,1838.4,41.88781]
[1746095805470,4.7281746,1838.5,1838.3,7.05637906]
[1746095805666,2.4065946,1838.4,1838.3,8.14427906]
[1746095805865,2.4065946,1838.4,1838.3,48.94427906]
[1746095806071,0.4325946,1838.4,1838.3,52.73227906]
[1746095806666,0.4325946,1838.4,1838.3,45.6759]
[1746095806872,0.4325946,1838.4,1838.3,50.6759]
[1746095807178,0.4325946,1838.4,1838.3,52.6763]
[1746095808984,5.1818,1838.7,1838.6,1.08772]
[1746095809280,6.70181411,1838.7,1838.6,1.08772]
[1746095809472,5.61414411,1838.7,1838.6,1.08772]
[1746095809669,6.70181411,1838.7,1838.6,1.08772]
[1746095810280,6.70181411,1838.7,1838.6,3.17672]
[1746095810674,6.70188054,1838.7,1838.6,3.17672]
[1746095811279,3.56217767,1839.6,1839.2,1.08734]
[1746095811578,5.876,1840.3,1839.2,1.08731]
[1746095811579,1.08734,1839.3,1839.2,1.08731]
[1746095811784,3.0859,1839.4,1839.3,1.08731]
[1746095811983,1.08731,1839.3,1839.2,1.08732]
[1746095812283,1.08737,1839.2,1839.1,3.11818]
[1746095812682,1.08735,1839.3,1839.1,3.11818]
[1746095812878,1.08735,1839.3,1839.0,2.0652]
[1746095812879,1.08743,1839.1,1839.0,2.0652]
[1746095813182,1.08755,1838.9,1838.7,1.08762]
[1746095813380,1.9986,1838.8,1838.7,1.08767]
[1746095814088,1.08767,1838.7,1838.6,1.0877]
[1746095814385,1.08776,1838.6,1838.5,1.08774]
[1746095814583,1.993,1838.6,1838.5,1.08774]
[1746095814784,3.08072,1838.6,1838.5,1.08774]
[1746095815084,1.993,1838.6,1838.5,1.08774]
[1746095815278,1.993,1838.6,1838.5,4.87574]
[1746095815578,3.08072,1838.6,1838.5,6.77954]
[1746095815778,1.993,1838.6,1838.5,6.77954]
[1746095816279,6.28852,1838.6,1838.5,3.788]
[1746095817386,3.08072,1838.6,1838.5,3.788]
[1746095817584,6.28852,1838.6,1838.5,3.788]
[1746095818281,2.71962,1838.4,1837.8,3.2078]
[1746095818478,4.2958,1838.2,1838.1,1.08802]
[1746095818678,1.088,1838.2,1838.1,41.88802]
[1746095818878,3.0745,1838.2,1838.1,41.88802]
[1746095819281,3.07451,1838.2,1838.1,1.08802]
[1746095819986,1.08802,1838.1,1838.0,3.788]
[1746095820187,3.18092,1838.1,1838.0,3.788]
[1746095821186,3.18092,1838.1,1838.0,4.87608]
[1746095821387,3.15172,1838.3,1838.2,1.08796]
[1746095821585,2.0638,1838.3,1838.2,1.08796]
[1746095821790,1.08788,1838.4,1838.3,1.0879]
[1746095822083,1.088,1838.2,1838.0,3.788]
[1746095822276,4.29574,1838.3,1838.2,4.87595]
[1746095822482,4.29574,1838.3,1838.2,3.788]
[1746095822778,4.29574,1838.3,1838.2,4.87596]
[1746095822779,1.08794,1838.3,1838.2,4.87596]